[Event "Balkan Youth Online-ch 2020"]
[Site "Online"]
[Date "2020.10.31"]
[Round "4.20"]
[White "Dragicevic, Niksa"]
[Black "Ramaj, Ergit"]
[Result "0-1"]
[ECO "B02"]
[WhiteElo "1068"]
[BlackElo "1444"]
[Annotator "NA RC"]
[PlyCount "86"]
[EventDate "2020.10.31"]
[EventType "swiss"]
[SourceTitle "playchess.com"]
[Source "ChessBase"]
[SourceQuality "1"]
[TimeControl "1500+5"]

1. e4 {[%emt 0:00:00]} Nf6 {[%emt 0:00:04]} 2. Nc3 {[%emt 0:00:00]} d5 {[%emt 0:00:00]} 3. exd5 {[%emt 0:00:00]} Nxd5 {[%emt 0:00:00]} 4. Bc4 {[%emt 0:00:17]} Nxc3 {[%emt 0:00:09]} 5. bxc3 {[%emt 0:00:00]} e6 {[%emt 0:00:00]} 6. d4 {[%emt 0:00:03]} Bd6 {[%emt 0:00:03]} 7. Nf3 {[%emt 0:00:02]} O-O {[%emt 0:00:01]} 8. O-O {[%emt 0:00:00]} b6 {[%emt 0:00:08]} 9. Qd3 {[%emt 0:00:12]} Bb7 {[%emt 0:00:44]} 10. Bg5 {[%emt 0:01:24]} Be7 {[%emt 0:00:31]} 11. Bf4 {[%emt 0:00:19]} c5 {[%emt 0:00:41]} 12. Rad1 {[%emt 0:01:41]} Qc8 {[%emt 0:03:02]} 13. Bb3 {[%emt 0:02:02]} Rd8 {[%emt 0:00:39]} 14. Qe3 {[%emt 0:00:32]} Ba6 {[%emt 0:02:07]} 15. c4 {[%emt 0:00:10]} cxd4 {[%emt 0:00:15]} 16. Rxd4 {[%emt 0:00:27]} Rxd4 {[%emt 0:00:30]} 17. Qxd4 {[%emt 0:00:00]} Nc6 {[%emt 0:00:05]} 18. Qe4 {[%emt 0:00:27]} Na5 {[%emt 0:00:59]} 19. Nd2 {[%emt 0:01:06]} Bf6 {[%emt 0:01:04]} 20. Qf3 {[%emt 0:01:00]} Nc6 {[%emt 0:02:44]} 21. Be3 {[%emt 0:01:34]} Bb7 {[%emt 0:00:49]} 22. Qe2 {[%emt 0:01:23]} Bd4 {[%emt 0:00:18]} 23. Qd3 {[%emt 0:01:25]} Bxe3 {[%emt 0:00:26]} 24. Qxe3 {[%emt 0:00:22]} Ne7 {[%emt 0:00:13]} 25. c3 {[%emt 0:01:03]} Qc6 {[%emt 0:00:20]} 26. Qf3 {[%emt 0:00:18]} Qxf3 {[%emt 0:00:31]} 27. Nxf3 {[%emt 0:00:00]} Bxf3 {[%emt 0:00:13]} 28. gxf3 {[%emt 0:00:00]} Rd8 {[%emt 0:00:00]} 29. Rd1 {[%emt 0:00:00]} Rxd1+ {[%emt 0:00:07]} 30. Bxd1 {[%emt 0:00:00]} Nc6 {[%emt 0:00:00]} 31. Be2 {[%emt 0:00:00]} Kf8 {[%emt 0:00:00]} 32. Kg2 {[%emt 0:00:00]} Ke7 {[%emt 0:00:00]} 33. Kg3 {[%emt 0:00:00]} Kd6 {[%emt 0:00:00]} 34. Kf4 {[%emt 0:00:00]} Kc5 {[%emt 0:00:00]} 35. Ke4 {[%emt 0:00:08]} Na5 {[%emt 0:00:04]} 36. Kd3 {[%emt 0:00:22]} Nxc4 {[%emt 0:00:02]} 37. Kc2 {[%emt 0:00:00]} b5 {[%emt 0:00:08]} 38. Bd3 {[%emt 0:00:00]} f5 {[%emt 0:00:14]} 39. f4 {[%emt 0:00:08]} Nb6 {[%emt 0:00:00]} 40. Kd2 {[%emt 0:00:22]} Nd5 {[%emt 0:00:00]} 41. Be2 {[%emt 0:00:08]} Nxf4 {[%emt 0:00:00]} 42. Bf3 {[%emt 0:00:00]} e5 {[%emt 0:00:00]} 43. Bh5 {[%emt 0:00:00]} Nxh5 {[%emt 0:00:00]} 0-1

[Event "Balkan Youth Online-ch 2020"]
[Site "Online"]
[Date "2020.10.31"]
[Round "4.21"]
[White "Milovic, Ilija"]
[Black "Cvetkovski, Gjorgji"]
[Result "0-1"]
[ECO "C30"]
[WhiteElo "1044"]
[BlackElo "1332"]
[Annotator "NA RC"]
[PlyCount "100"]
[EventDate "2020.10.31"]
[EventType "swiss"]
[SourceTitle "playchess.com"]
[Source "ChessBase"]
[SourceQuality "1"]
[TimeControl "1500+5"]

1. e4 {[%emt 0:00:00]} e5 {[%emt 0:00:06]} 2. f4 {[%emt 0:00:00]} Bc5 {[%emt 0:00:00]} 3. Nf3 {[%emt 0:00:00]} d6 {[%emt 0:00:00]} 4. Bc4 {[%emt 0:00:05]} Nf6 {[%emt 0:01:09]} 5. d3 {[%emt 0:00:08]} Nc6 {[%emt 0:00:00]} 6. Nc3 {[%emt 0:00:07]} O-O {[%emt 0:00:04]} 7. a3 {[%emt 0:00:01]} Bg4 {[%emt 0:00:00]} 8. h3 {[%emt 0:00:03]} Bxf3 {[%emt 0:00:15]} 9. Qxf3 {[%emt 0:00:02]} Nd4 {[%emt 0:00:01]} 10. Qd1 {[%emt 0:00:16]} c6 {[%emt 0:00:36]} 11. b4 {[%emt 0:00:12]} Bb6 {[%emt 0:00:02]} 12. Bb2 {[%emt 0:00:07]} d5 {[%emt 0:00:12]} 13. exd5 {[%emt 0:00:20]} cxd5 {[%emt 0:00:00]} 14. Bb5 {[%emt 0:00:14]} a6 {[%emt 0:00:15]} 15. Ba4 {[%emt 0:00:00]} e4 {[%emt 0:00:22]} 16. dxe4 {[%emt 0:00:02]} dxe4 {[%emt 0:00:05]} 17. Ne2 {[%emt 0:00:05]} Nxe2 {[%emt 0:00:34]} 18. Qxd8 {[%emt 0:00:07]} Raxd8 {[%emt 0:00:02]} 19. Kxe2 {[%emt 0:00:02]} Ba7 {[%emt 0:00:06]} 20. Bxf6 {[%emt 0:00:07]} gxf6 {[%emt 0:00:00]} 21. Rad1 {[%emt 0:00:05]} b5 {[%emt 0:00:00]} 22. Bb3 {[%emt 0:00:12]} Rfe8 {[%emt 0:01:28]} 23. Rxd8 {[%emt 0:00:06]} Rxd8 {[%emt 0:00:00]} 24. Rd1 {[%emt 0:00:00]} Rxd1 {[%emt 0:00:20]} 25. Kxd1 {[%emt 0:00:00]} Kf8 {[%emt 0:00:02]} 26. c4 {[%emt 0:00:00]} bxc4 {[%emt 0:00:09]} 27. Bxc4 {[%emt 0:00:00]} Be3 {[%emt 0:00:05]} 28. f5 {[%emt 0:00:00]} Ke7 {[%emt 0:00:01]} 29. Bxa6 {[%emt 0:00:01]} Kd6 {[%emt 0:00:00]} 30. a4 {[%emt 0:00:14]} Ke5 {[%emt 0:00:03]} 31. a5 {[%emt 0:00:23]} Kxf5 {[%emt 0:00:16]} 32. b5 {[%emt 0:00:00]} Ke5 {[%emt 0:00:04]} 33. b6 {[%emt 0:00:00]} Kd6 {[%emt 0:00:00]} 34. Bb7 {[%emt 0:00:19]} f5 {[%emt 0:00:10]} 35. g4 {[%emt 0:00:11]} Ke5 {[%emt 0:00:13]} 36. gxf5 {[%emt 0:00:20]} Kxf5 {[%emt 0:00:02]} 37. Bc8+ {[%emt 0:00:02]} Ke5 {[%emt 0:00:02]} 38. Ke2 {[%emt 0:00:15]} Bc5 {[%emt 0:00:05]} 39. b7 {[%emt 0:00:25]} Ba7 {[%emt 0:00:01]} 40. a6 {[%emt 0:00:15]} f5 {[%emt 0:00:00]} 41. Bd7 {[%emt 0:00:07]} f4 {[%emt 0:00:02]} 42. Bb5 {[%emt 0:00:05]} f3+ {[%emt 0:00:25]} 43. Kf1 {[%emt 0:00:27]} Kf4 {[%emt 0:00:00]} 44. h4 {[%emt 0:00:50]} Kg3 {[%emt 0:00:42]} 45. Bc6 {[%emt 0:00:25]} e3 {[%emt 0:00:01]} 46. Bxf3 {[%emt 0:00:29]} Kxf3 {[%emt 0:00:00]} 47. h5 {[%emt 0:00:07]} h6 {[%emt 0:00:04]} 48. Kg1 {[%emt 0:00:46]} e2+ {[%emt 0:00:34]} 49. Kh2 {[%emt 0:00:11]} e1=Q {[%emt 0:00:01]} 50. Kh3 {[%emt 0:00:11]} Qg3# {[%emt 0:00:00]} 0-1

[Event "Balkan Youth Online-ch 2020"]
[Site "Online"]
[Date "2020.10.31"]
[Round "4.32"]
[White "Smirnov, Grigorii"]
[Black "Dafa, Sirio"]
[Result "1-0"]
[ECO "A52"]
[WhiteElo "1413"]
[BlackElo "1004"]
[Annotator "NA RC"]
[PlyCount "40"]
[EventDate "2020.10.31"]
[EventType "swiss"]
[SourceTitle "playchess.com"]
[Source "ChessBase"]
[SourceQuality "1"]
[TimeControl "1500+5"]

1. d4 {[%emt 0:00:00]} Nf6 {[%emt 0:00:00]} 2. c4 {[%emt 0:00:00]} e5 {[%emt 0:00:00]} 3. dxe5 {[%emt 0:00:00]} Ng4 {[%emt 0:00:00]} 4. Nf3 {[%emt 0:00:00]} Bc5 {[%emt 0:00:00]} 5. e3 {[%emt 0:00:00]} Nc6 {[%emt 0:00:00]} 6. Be2 {[%emt 0:00:01]} Ngxe5 {[%emt 0:00:00]} 7. Nxe5 {[%emt 0:00:00]} Nxe5 {[%emt 0:00:00]} 8. Nc3 {[%emt 0:00:05]} d6 {[%emt 0:00:00]} 9. b3 {[%emt 0:00:34]} O-O {[%emt 0:00:00]} 10. O-O {[%emt 0:00:04]} a6 {[%emt 0:00:48]} 11. Bb2 {[%emt 0:00:23]} Be6 {[%emt 0:02:20]} 12. Ne4 {[%emt 0:02:18]} Ba7 {[%emt 0:00:10]} 13. c5 {[%emt 0:01:08]} d5 {[%emt 0:03:05]} 14. Bxe5 {[%emt 0:00:35]} dxe4 {[%emt 0:00:05]} 15. b4 {[%emt 0:00:47]} Qe7 {[%emt 0:00:11]} 16. Bd4 {[%emt 0:03:00]} Rad8 {[%emt 0:02:01]} 17. Qc2 {[%emt 0:00:24]} f5 {[%emt 0:02:24]} 18. Bc4 {[%emt 0:01:22]} Kh8 {[%emt 0:01:20]} 19. Bxe6 {[%emt 0:01:17]} Qxe6 {[%emt 0:00:00]} 20. Qc3 {[%emt 0:00:02]} Qd6 {[%emt 0:01:41]} 1-0

[Event "Balkan Youth Online-ch 2020"]
[Site "Online"]
[Date "2020.10.31"]
[Round "4.33"]
[White "Guri, Adrian"]
[Black "Shtavica, Alaudin"]
[Result "1-0"]
[ECO "C47"]
[WhiteElo "1611"]
[BlackElo "1323"]
[Annotator "NA RC"]
[PlyCount "121"]
[EventDate "2020.10.31"]
[EventType "swiss"]
[SourceTitle "playchess.com"]
[Source "ChessBase"]
[SourceQuality "1"]
[TimeControl "1500+5"]

1. e4 {[%emt 0:00:00]} e5 {[%emt 0:00:01]} 2. Nf3 {[%emt 0:00:00]} Nc6 {[%emt 0:00:15]} 3. Nc3 {[%emt 0:00:00]} Nf6 {[%emt 0:00:11]} 4. d4 {[%emt 0:00:00]} exd4 {[%emt 0:00:22]} 5. Nxd4 {[%emt 0:00:00]} Bb4 {[%emt 0:00:07]} 6. Nxc6 {[%emt 0:00:00]} bxc6 {[%emt 0:00:02]} 7. Bd3 {[%emt 0:00:00]} O-O {[%emt 0:00:26]} 8. O-O {[%emt 0:00:15]} d5 {[%emt 0:00:21]} 9. exd5 {[%emt 0:00:00]} cxd5 {[%emt 0:00:01]} 10. h3 {[%emt 0:00:01]} Re8 {[%emt 0:00:26]} 11. Qf3 {[%emt 0:00:18]} Rb8 {[%emt 0:00:34]} 12. Bf4 {[%emt 0:00:34]} Bd6 {[%emt 0:00:50]} 13. b3 {[%emt 0:00:04]} d4 {[%emt 0:00:54]} 14. Ne2 {[%emt 0:02:13]} Bb7 {[%emt 0:00:16]} 15. Qg3 {[%emt 0:02:06]} Nh5 {[%emt 0:00:00]} 16. Qg4 {[%emt 0:01:16]} Rxe2 {[%emt 0:00:53]} 17. Qxh5 {[%emt 0:00:57]} Re6 {[%emt 0:00:29]} 18. Qxh7+ {[%emt 0:00:25]} Kf8 {[%emt 0:00:00]} 19. Qh8+ {[%emt 0:00:04]} Ke7 {[%emt 0:00:05]} 20. Bg5+ {[%emt 0:00:09]} Rf6 {[%emt 0:00:12]} 21. Qxg7 {[%emt 0:01:13]} Kd7 {[%emt 0:01:49]} 22. Qxf6 {[%emt 0:00:32]} Qxf6 {[%emt 0:00:28]} 23. Bxf6 {[%emt 0:00:00]} c5 {[%emt 0:00:22]} 24. h4 {[%emt 0:00:24]} Ke6 {[%emt 0:00:30]} 25. Bg5 {[%emt 0:00:03]} Kd7 {[%emt 0:00:14]} 26. Rae1 {[%emt 0:00:12]} Bd5 {[%emt 0:00:13]} 27. Bf6 {[%emt 0:00:09]} Rg8 {[%emt 0:00:12]} 28. Be4 {[%emt 0:00:09]} Be6 {[%emt 0:02:16]} 29. h5 {[%emt 0:00:27]} Bf4 {[%emt 0:01:04]} 30. Bh7 {[%emt 0:00:33]} Rb8 {[%emt 0:00:54]} 31. Bg7 {[%emt 0:00:16]} Bh6 {[%emt 0:00:41]} 32. Bxh6 {[%emt 0:00:30]} Rh8 {[%emt 0:00:00]} 33. Bd3 {[%emt 0:00:34]} Rxh6 {[%emt 0:00:11]} 34. Re5 {[%emt 0:00:02]} Kd6 {[%emt 0:00:12]} 35. Rfe1 {[%emt 0:00:07]} Bg4 {[%emt 0:00:25]} 36. R5e4 {[%emt 0:00:24]} Bxh5 {[%emt 0:00:06]} 37. Rh4 {[%emt 0:00:03]} Rh8 {[%emt 0:00:30]} 38. Be2 {[%emt 0:00:19]} Bxe2 {[%emt 0:00:50]} 39. Rxh8 {[%emt 0:00:00]} Bg4 {[%emt 0:00:00]} 40. f3 {[%emt 0:00:03]} Be6 {[%emt 0:00:01]} 41. Rxe6+ {[%emt 0:00:00]} fxe6 {[%emt 0:00:00]} 42. g4 {[%emt 0:00:17]} a5 {[%emt 0:00:00]} 43. g5 {[%emt 0:00:00]} Ke7 {[%emt 0:00:00]} 44. g6 {[%emt 0:00:14]} Kf6 {[%emt 0:00:00]} 45. Rg8 {[%emt 0:00:21]} e5 {[%emt 0:00:04]} 46. Kf2 {[%emt 0:00:00]} Kf5 {[%emt 0:00:00]} 47. g7 {[%emt 0:00:13]} Kf6 {[%emt 0:00:00]} 48. Ra8 {[%emt 0:00:00]} Kxg7 {[%emt 0:00:00]} 49. Rxa5 {[%emt 0:00:00]} Kf6 {[%emt 0:00:00]} 50. Rxc5 {[%emt 0:00:00]} e4 {[%emt 0:00:00]} 51. fxe4 {[%emt 0:00:00]} Ke6 {[%emt 0:00:00]} 52. a4 {[%emt 0:00:00]} Kd6 {[%emt 0:00:00]} 53. b4 {[%emt 0:00:00]} d3 {[%emt 0:00:00]} 54. cxd3 {[%emt 0:00:00]} Ke6 {[%emt 0:00:00]} 55. a5 {[%emt 0:00:00]} Kd7 {[%emt 0:00:00]} 56. a6 {[%emt 0:00:00]} Ke6 {[%emt 0:00:00]} 57. a7 {[%emt 0:00:00]} Kd6 {[%emt 0:00:00]} 58. a8=Q {[%emt 0:00:00]} Ke7 {[%emt 0:00:00]} 59. Qa6 {[%emt 0:00:00]} Kd7 {[%emt 0:00:00]} 60. e5 {[%emt 0:00:00]} Ke7 {[%emt 0:00:00]} 61. Rc7+ {[%emt 0:00:00]} 1-0

[Event "Balkan Youth Online-ch 2020"]
[Site "Online"]
[Date "2020.10.31"]
[Round "4.44"]
[White "Filippovskiy Nikita"]
[Black "Mitkov, Simeon-Alekzander"]
[Result "1-0"]
[ECO "B84"]
[WhiteElo "1534"]
[BlackElo "1319"]
[Annotator "NA RC"]
[PlyCount "95"]
[EventDate "2020.10.31"]
[EventType "swiss"]
[SourceTitle "playchess.com"]
[Source "ChessBase"]
[SourceQuality "1"]
[TimeControl "1500+5"]

1. e4 {[%emt 0:00:00]} c5 {[%emt 0:00:00]} 2. Nf3 {[%emt 0:00:00]} e6 {[%emt 0:00:00]} 3. d4 {[%emt 0:00:00]} cxd4 {[%emt 0:00:00]} 4. Nxd4 {[%emt 0:00:00]} Nf6 {[%emt 0:00:00]} 5. Nc3 {[%emt 0:00:00]} d6 {[%emt 0:00:00]} 6. Be3 {[%emt 0:00:00]} a6 {[%emt 0:00:35]} 7. Be2 {[%emt 0:00:00]} b5 {[%emt 0:00:04]} 8. a3 {[%emt 0:00:00]} Bb7 {[%emt 0:00:00]} 9. f3 {[%emt 0:00:00]} Be7 {[%emt 0:00:09]} 10. Qd2 {[%emt 0:00:12]} O-O {[%emt 0:00:02]} 11. h4 {[%emt 0:00:05]} h6 {[%emt 0:00:01]} 12. g4 {[%emt 0:00:00]} Nbd7 {[%emt 0:00:00]} 13. g5 {[%emt 0:00:11]} Nh5 {[%emt 0:00:48]} 14. O-O-O {[%emt 0:00:27]} Ng3 {[%emt 0:00:21]} 15. Rhg1 {[%emt 0:00:09]} Nxe2+ {[%emt 0:00:28]} 16. Qxe2 {[%emt 0:00:05]} h5 {[%emt 0:00:00]} 17. f4 {[%emt 0:00:06]} Nc5 {[%emt 0:00:59]} 18. Qxh5 {[%emt 0:00:34]} Nxe4 {[%emt 0:00:11]} 19. g6 {[%emt 0:00:10]} Nf6 {[%emt 0:02:19]} 20. gxf7+ {[%emt 0:00:06]} Rxf7 {[%emt 0:00:00]} 21. Qg6 {[%emt 0:00:10]} Qd7 {[%emt 0:01:02]} 22. f5 {[%emt 0:00:29]} e5 {[%emt 0:01:27]} 23. Ne6 {[%emt 0:00:02]} Bf8 {[%emt 0:00:06]} 24. Bg5 {[%emt 0:00:36]} Ne8 {[%emt 0:00:58]} 25. Nxf8 {[%emt 0:00:37]} Kxf8 {[%emt 0:00:00]} 26. Qh7 {[%emt 0:02:39]} Nf6 {[%emt 0:00:16]} 27. Bxf6 {[%emt 0:00:07]} gxf6 {[%emt 0:00:32]} 28. Rg8+ {[%emt 0:00:01]} Ke7 {[%emt 0:00:00]} 29. Rg7 {[%emt 0:00:00]} Ke8 {[%emt 0:00:37]} 30. Qg8+ {[%emt 0:00:06]} Rf8 {[%emt 0:00:22]} 31. Qxf8+ {[%emt 0:00:00]} Kxf8 {[%emt 0:00:00]} 32. Rxd7 {[%emt 0:00:00]} Bf3 {[%emt 0:00:01]} 33. R1xd6 {[%emt 0:00:00]} Ke8 {[%emt 0:00:13]} 34. Rh7 {[%emt 0:00:43]} Bg4 {[%emt 0:00:49]} 35. Re6+ {[%emt 0:00:59]} Kf8 {[%emt 0:00:03]} 36. Rh8+ {[%emt 0:00:11]} Kf7 {[%emt 0:00:03]} 37. Rxa8 {[%emt 0:00:00]} Bxf5 {[%emt 0:00:08]} 38. Rexa6 {[%emt 0:00:00]} Kg6 {[%emt 0:00:09]} 39. Rf8 {[%emt 0:00:00]} Kh5 {[%emt 0:00:03]} 40. Raxf6 {[%emt 0:00:00]} Bg6 {[%emt 0:00:02]} 41. Rh8+ {[%emt 0:00:00]} Kg4 {[%emt 0:00:02]} 42. Rxg6+ {[%emt 0:00:00]} Kf4 {[%emt 0:00:00]} 43. Rf8+ {[%emt 0:00:00]} Ke3 {[%emt 0:00:00]} 44. Rg3+ {[%emt 0:00:00]} Kd4 {[%emt 0:00:00]} 45. Rd3+ {[%emt 0:00:00]} Kc5 {[%emt 0:00:00]} 46. Rf6 {[%emt 0:00:00]} e4 {[%emt 0:00:00]} 47. Rd5+ {[%emt 0:00:00]} Kc4 {[%emt 0:00:03]} 48. Rc6# {[%emt 0:00:00]} 1-0

[Event "Balkan Youth Online-ch 2020"]
[Site "Online"]
[Date "2020.10.31"]
[Round "4.55"]
[White "Toumpakari, Maria"]
[Black "Bagas, Ana"]
[Result "0-1"]
[ECO "C01"]
[WhiteElo "1376"]
[BlackElo "1589"]
[Annotator "NA RC"]
[PlyCount "120"]
[EventDate "2020.10.31"]
[EventType "swiss"]
[SourceTitle "playchess.com"]
[Source "ChessBase"]
[SourceQuality "1"]
[TimeControl "1500+5"]

1. e4 {[%emt 0:00:00]} e6 {[%emt 0:00:05]} 2. d4 {[%emt 0:00:00]} d5 {[%emt 0:00:03]} 3. exd5 {[%emt 0:00:00]} exd5 {[%emt 0:00:00]} 4. Bd3 {[%emt 0:00:04]} Nf6 {[%emt 0:00:02]} 5. Ne2 {[%emt 0:00:24]} c5 {[%emt 0:00:00]} 6. dxc5 {[%emt 0:00:15]} Bxc5 {[%emt 0:00:10]} 7. O-O {[%emt 0:00:05]} O-O {[%emt 0:00:02]} 8. Nbc3 {[%emt 0:00:08]} Nc6 {[%emt 0:00:02]} 9. Bg5 {[%emt 0:00:11]} Be6 {[%emt 0:00:26]} 10. Ng3 {[%emt 0:01:49]} h6 {[%emt 0:00:48]} 11. Bxf6 {[%emt 0:01:00]} Qxf6 {[%emt 0:00:15]} 12. Qh5 {[%emt 0:00:44]} Rad8 {[%emt 0:03:08]} 13. Rad1 {[%emt 0:01:30]} Ne5 {[%emt 0:00:56]} 14. h3 {[%emt 0:00:39]} Bd6 {[%emt 0:02:46]} 15. Nf5 {[%emt 0:01:24]} Nxd3 {[%emt 0:00:27]} 16. Nxd6 {[%emt 0:01:25]} Nf4 {[%emt 0:00:09]} 17. Qf3 {[%emt 0:00:28]} Nxh3+ {[%emt 0:01:46]} 18. Kh2 {[%emt 0:00:54]} Qxf3 {[%emt 0:00:18]} 19. gxf3 {[%emt 0:00:00]} Rxd6 {[%emt 0:00:00]} 20. Ne2 {[%emt 0:01:51]} Ng5 {[%emt 0:00:42]} 21. f4 {[%emt 0:00:24]} Ne4 {[%emt 0:00:28]} 22. f3 {[%emt 0:00:13]} Nf6 {[%emt 0:00:05]} 23. Nd4 {[%emt 0:00:11]} a6 {[%emt 0:01:04]} 24. c3 {[%emt 0:00:33]} Nh5 {[%emt 0:02:05]} 25. f5 {[%emt 0:00:13]} Bd7 {[%emt 0:00:14]} 26. Rf2 {[%emt 0:00:33]} Rf6 {[%emt 0:00:19]} 27. Rfd2 {[%emt 0:01:07]} Bxf5 {[%emt 0:00:33]} 28. Nxf5 {[%emt 0:00:04]} Rxf5 {[%emt 0:00:00]} 29. Rxd5 {[%emt 0:00:05]} Rxd5 {[%emt 0:00:03]} 30. Rxd5 {[%emt 0:00:00]} Nf6 {[%emt 0:00:00]} 31. Rd6 {[%emt 0:00:16]} Re8 {[%emt 0:00:04]} 32. Rb6 {[%emt 0:00:08]} Re3 {[%emt 0:01:01]} 33. Kg2 {[%emt 0:00:08]} Re7 {[%emt 0:00:44]} 34. c4 {[%emt 0:00:29]} h5 {[%emt 0:00:08]} 35. c5 {[%emt 0:00:26]} Rc7 {[%emt 0:00:08]} 36. c6 {[%emt 0:00:18]} Rxc6 {[%emt 0:00:09]} 37. Rxb7 {[%emt 0:00:00]} g5 {[%emt 0:00:09]} 38. Rb4 {[%emt 0:00:44]} h4 {[%emt 0:00:11]} 39. a3 {[%emt 0:00:29]} Rc2+ {[%emt 0:00:00]} 40. Kg1 {[%emt 0:00:28]} h3 {[%emt 0:00:05]} 41. b3 {[%emt 0:01:10]} h2+ {[%emt 0:00:09]} 42. Kh1 {[%emt 0:00:08]} Nh5 {[%emt 0:00:12]} 43. Rg4 {[%emt 0:00:09]} f6 {[%emt 0:00:22]} 44. Rg2 {[%emt 0:00:23]} Rxg2 {[%emt 0:00:24]} 45. Kxg2 {[%emt 0:00:00]} Nf4+ {[%emt 0:00:00]} 46. Kxh2 {[%emt 0:00:00]} f5 {[%emt 0:00:21]} 47. Kg3 {[%emt 0:00:07]} Kf7 {[%emt 0:00:12]} 48. Kf2 {[%emt 0:00:00]} Ke6 {[%emt 0:00:03]} 49. Ke3 {[%emt 0:00:10]} Ke5 {[%emt 0:00:08]} 50. b4 {[%emt 0:00:01]} Nd5+ {[%emt 0:00:38]} 51. Kf2 {[%emt 0:00:34]} Kf4 {[%emt 0:00:42]} 52. Kg2 {[%emt 0:00:17]} g4 {[%emt 0:00:00]} 53. fxg4 {[%emt 0:00:00]} fxg4 {[%emt 0:00:00]} 54. Kf2 {[%emt 0:00:08]} g3+ {[%emt 0:00:03]} 55. Kg2 {[%emt 0:00:11]} Ne3+ {[%emt 0:00:02]} 56. Kg1 {[%emt 0:00:27]} Nc2 {[%emt 0:00:21]} 57. a4 {[%emt 0:00:15]} Nxb4 {[%emt 0:00:00]} 58. Kg2 {[%emt 0:00:05]} a5 {[%emt 0:00:02]} 59. Kg1 {[%emt 0:00:06]} Nd5 {[%emt 0:00:00]} 60. Kg2 {[%emt 0:00:00]} Nc3 {[%emt 0:00:00]} 0-1

[Event "Balkan Youth Online-ch 2020"]
[Site "Online"]
[Date "2020.10.31"]
[Round "4.57"]
[White "Caku, Kler"]
[Black "Siskou, Evangelia"]
[Result "1-0"]
[ECO "C47"]
[WhiteElo "1199"]
[BlackElo "1339"]
[Annotator "NA RC"]
[PlyCount "31"]
[EventDate "2020.10.31"]
[EventType "swiss"]
[SourceTitle "playchess.com"]
[Source "ChessBase"]
[SourceQuality "1"]
[TimeControl "1500+5"]

1. e4 {[%emt 0:00:00]} e5 {[%emt 0:00:00]} 2. Nf3 {[%emt 0:00:00]} Nc6 {[%emt 0:00:00]} 3. d4 {[%emt 0:00:00]} exd4 {[%emt 0:00:11]} 4. Nxd4 {[%emt 0:00:00]} Nf6 {[%emt 0:00:03]} 5. Nc3 {[%emt 0:00:00]} Bb4 {[%emt 0:00:03]} 6. Nxc6 {[%emt 0:00:00]} b5 {[%emt 0:00:05]} 7. Nxd8 {[%emt 0:00:00]} Kxd8 {[%emt 0:00:10]} 8. Bg5 {[%emt 0:00:00]} Ke8 {[%emt 0:00:01]} 9. Bxf6 {[%emt 0:00:00]} gxf6 {[%emt 0:00:01]} 10. Qd3 {[%emt 0:00:00]} Bxc3+ {[%emt 0:00:00]} 11. Qxc3 {[%emt 0:00:00]} c6 {[%emt 0:00:01]} 12. Qxf6 {[%emt 0:00:00]} Rf8 {[%emt 0:00:02]} 13. O-O-O {[%emt 0:00:00]} Bb7 {[%emt 0:00:03]} 14. Qe5+ {[%emt 0:00:19]} Kd8 {[%emt 0:00:00]} 15. Qd6 {[%emt 0:00:00]} Re8 {[%emt 0:00:00]} 16. Qxd7# {[%emt 0:00:00]} 1-0

[Event "Balkan Youth Online-ch 2020"]
[Site "Online"]
[Date "2020.10.31"]
[Round "4.63"]
[White "Tirpan, Ceren"]
[Black "Pirvan, Maria"]
[Result "1-0"]
[ECO "B33"]
[WhiteElo "1379"]
[BlackElo "1484"]
[Annotator "NA RC"]
[PlyCount "115"]
[EventDate "2020.10.31"]
[EventType "swiss"]
[SourceTitle "playchess.com"]
[Source "ChessBase"]
[SourceQuality "1"]
[TimeControl "1500+5"]

1. e4 {[%emt 0:00:00]} c5 {[%emt 0:00:00]} 2. Nf3 {[%emt 0:00:00]} Nc6 {[%emt 0:00:00]} 3. d4 {[%emt 0:00:00]} cxd4 {[%emt 0:00:00]} 4. Nxd4 {[%emt 0:00:00]} Nf6 {[%emt 0:00:00]} 5. Nxc6 {[%emt 0:00:00]} bxc6 {[%emt 0:00:00]} 6. Bd3 {[%emt 0:00:00]} e5 {[%emt 0:00:00]} 7. O-O {[%emt 0:00:00]} Bc5 {[%emt 0:00:39]} 8. Nc3 {[%emt 0:00:00]} O-O {[%emt 0:00:16]} 9. h3 {[%emt 0:00:00]} d5 {[%emt 0:00:03]} 10. exd5 {[%emt 0:00:00]} cxd5 {[%emt 0:00:00]} 11. Bg5 {[%emt 0:00:00]} Bb7 {[%emt 0:00:43]} 12. Re1 {[%emt 0:00:56]} h6 {[%emt 0:00:42]} 13. Bh4 {[%emt 0:00:08]} Re8 {[%emt 0:00:31]} 14. Bg3 {[%emt 0:01:10]} e4 {[%emt 0:03:02]} 15. Bf1 {[%emt 0:00:18]} e3 {[%emt 0:05:47]} 16. fxe3 {[%emt 0:00:36]} Bxe3+ {[%emt 0:00:01]} 17. Kh2 {[%emt 0:00:06]} d4 {[%emt 0:01:06]} 18. Nb5 {[%emt 0:01:24]} Ne4 {[%emt 0:01:18]} 19. Qg4 {[%emt 0:00:55]} Nxg3 {[%emt 0:00:48]} 20. Qxg3 {[%emt 0:00:01]} Qf6 {[%emt 0:01:12]} 21. Kh1 {[%emt 0:01:47]} Bf2 {[%emt 0:01:48]} 22. Rxe8+ {[%emt 0:00:05]} Rxe8 {[%emt 0:00:00]} 23. Qc7 {[%emt 0:01:01]} Ba8 {[%emt 0:02:17]} 24. Nd6 {[%emt 0:00:34]} Rf8 {[%emt 0:01:10]} 25. Nc8 {[%emt 0:03:06]} Qe6 {[%emt 0:01:48]} 26. Ne7+ {[%emt 0:00:36]} Kh8 {[%emt 0:00:10]} 27. Bc4 {[%emt 0:03:17]} Qxh3+ {[%emt 0:00:44]} 28. Qh2 {[%emt 0:00:00]} Qd7 {[%emt 0:00:33]} 29. Rf1 {[%emt 0:00:22]} Qxe7 {[%emt 0:01:07]} 30. Rxf2 {[%emt 0:00:00]} f5 {[%emt 0:00:46]} 31. Qf4 {[%emt 0:00:19]} Be4 {[%emt 0:00:16]} 32. Re2 {[%emt 0:00:44]} Qf6 {[%emt 0:00:10]} 33. Kg1 {[%emt 0:00:39]} Rc8 {[%emt 0:00:07]} 34. Bb3 {[%emt 0:00:13]} d3 {[%emt 0:00:15]} 35. cxd3 {[%emt 0:00:25]} Bxd3 {[%emt 0:00:14]} 36. Re6 {[%emt 0:00:16]} Qg5 {[%emt 0:00:08]} 37. Qxg5 {[%emt 0:01:12]} hxg5 {[%emt 0:00:00]} 38. Re7 {[%emt 0:00:00]} a6 {[%emt 0:00:02]} 39. Rd7 {[%emt 0:00:09]} Be4 {[%emt 0:00:12]} 40. Rd6 {[%emt 0:00:30]} Rc1+ {[%emt 0:00:08]} 41. Kf2 {[%emt 0:00:00]} Rb1 {[%emt 0:00:04]} 42. Rd2 {[%emt 0:00:01]} Rc1 {[%emt 0:00:08]} 43. Bf7 {[%emt 0:00:16]} Rc6 {[%emt 0:00:04]} 44. b4 {[%emt 0:00:13]} Rb6 {[%emt 0:00:01]} 45. a3 {[%emt 0:00:00]} Rf6 {[%emt 0:00:05]} 46. Bc4 {[%emt 0:00:00]} Rc6 {[%emt 0:00:02]} 47. Bf7 {[%emt 0:00:03]} Rc3 {[%emt 0:00:07]} 48. Bg6 {[%emt 0:00:01]} Rc8 {[%emt 0:00:07]} 49. g4 {[%emt 0:00:04]} Rf8 {[%emt 0:00:08]} 50. Ke3 {[%emt 0:00:09]} Bb7 {[%emt 0:00:09]} 51. Bxf5 {[%emt 0:00:11]} Kg8 {[%emt 0:00:05]} 52. Be6+ {[%emt 0:00:00]} Kh7 {[%emt 0:00:00]} 53. Rh2+ {[%emt 0:00:00]} Kg6 {[%emt 0:00:00]} 54. Bf5+ {[%emt 0:00:00]} Kf6 {[%emt 0:00:04]} 55. Rd2 {[%emt 0:00:00]} Re8+ {[%emt 0:00:04]} 56. Kf2 {[%emt 0:00:00]} Ke7 {[%emt 0:00:10]} 57. Rd7+ {[%emt 0:00:00]} Kf6 {[%emt 0:00:01]} 58. Rxb7 {[%emt 0:00:00]} 1-0